fUSD/lending_fUSD_20240607
["ID","MTS","AMOUNT","RATE_DAILY","PERIOD"]
[328768059,1717776652520,-621.16,0.00029999,4]
[328768060,1717776652529,-621.16,0.00029999,4]
[328768061,1717776652539,-621.39787924,0.00029999,4]
[328768062,1717776652549,-500.0,0.00029999,4]
[328768063,1717776652558,-500.0,0.00029999,4]
[328768064,1717776652569,-500.0,0.00029999,4]
[328768065,1717776652579,-500.0,0.00029999,4]
[328768066,1717776652588,-195.69999999,0.00029999,4]
[328768067,1717776652598,-2143.18,0.00029999,4]
[328768068,1717776652607,-2143.18,0.00029999,4]
[328768069,1717776652616,-2143.18,0.00029999,4]
[328768070,1717776652626,-2143.18,0.00029999,4]
[328768071,1717776652635,-2143.18,0.00029999,4]
[328768072,1717776652645,-2143.18,0.00029999,4]
[328768073,1717776652658,-2143.18,0.00029999,4]
[328768074,1717776652668,-2143.18,0.00029999,4]
[328768075,1717776652678,-2143.18,0.00029999,4]
[328768076,1717776652688,-2143.18,0.00029999,4]
[328768077,1717776652698,-2143.18,0.00029999,4]
[328768078,1717776652708,-2143.18,0.00029999,4]
[328768079,1717776652718,-2143.18,0.00029999,4]
[328768080,1717776652729,-2143.18,0.00029999,4]
[328768081,1717776652739,-2143.18,0.00029999,4]
[328768082,1717776652749,-2143.18,0.00029999,4]
[328768083,1717776652759,-2143.18,0.00029999,4]
[328768084,1717776652768,-258.57590757,0.00029999,4]
[328768085,1717776652960,-455.87791954,0.00029999,4]
[328768086,1717776653023,-0.00202956,0.00029999,4]
[328768087,1717776653039,-1428.72414333,0.00029999,4]
[328768088,1717776653049,-2143.2705,0.00029999,4]
[328768089,1717776653060,-1990.110066,0.00029999,7]
[328768090,1717776653070,-500.0,0.00029999,4]
[328768091,1717776653080,-500.0,0.00029999,4]
[328768092,1717776653090,-500.0,0.00029999,4]
[328768093,1717776653100,-500.0,0.00029999,4]
[328768094,1717776653110,-500.0,0.00029999,4]
[328768095,1717776653119,-500.0,0.00029999,4]
[328768096,1717776653129,-331.74,0.00029999,4]
[328768097,1717776653138,-1990.110066,0.00029999,7]
[328768098,1717776653147,-500.0,0.00029999,4]
[328768099,1717776653156,-500.0,0.00029999,4]
[328768100,1717776653166,-500.0,0.00029999,4]
[328768101,1717776653175,-500.0,0.00029999,4]
[328768102,1717776653185,-500.0,0.00029999,4]
[328768103,1717776653194,-500.0,0.00029999,4]
[328768104,1717776653203,-500.0,0.00029999,4]
[328768105,1717776653212,-536.95699591,0.00029999,4]
[328768106,1717776653222,-1033.93325444,0.00029999,4]
[328768107,1717776653622,-79.65674556,0.00029999,4]
[328768108,1717776653632,-1113.59,0.00029999,4]
[328768109,1717776653642,-1113.59,0.00029999,4]
[328768110,1717776653652,-1113.59,0.00029999,4]
[328768111,1717776653665,-1113.59,0.00029999,4]
[328768112,1717776653675,-1113.59,0.00029999,4]
[328768113,1717776653684,-1113.59,0.00029999,4]
[328768114,1717776653694,-1113.59,0.00029999,4]
[328768115,1717776653704,-1113.59,0.00029999,4]
[328768116,1717776653713,-1113.59,0.00029999,4]
[328768117,1717776653723,-1113.59,0.00029999,4]
[328768118,1717776653734,-1113.59,0.00029999,4]
[328768119,1717776653744,-1113.59,0.00029999,4]
[328768120,1717776653754,-1113.59,0.00029999,4]
[328768121,1717776653763,-1113.59,0.00029999,4]
[328768122,1717776653773,-500.0,0.00029999,4]
[328768123,1717776653783,-500.0,0.00029999,4]
[328768124,1717776653792,-500.0,0.00029999,4]
[328768125,1717776653802,-500.0,0.00029999,4]
[328768126,1717776653813,-500.0,0.00029999,4]
[328768127,1717776653823,-575.77842679,0.00029999,4]
[328768128,1717776653832,-500.0,0.00029999,4]
[328768129,1717776653841,-500.0,0.00029999,4]
[328768130,1717776653850,-500.0,0.00029999,4]
[328768131,1717776653860,-500.0,0.00029999,4]
[328768132,1717776653869,-500.0,0.00029999,4]
[328768133,1717776653878,-500.0,0.00029999,4]
[328768134,1717776653888,-200.96,0.00029999,4]
[328768135,1717776653897,-500.0,0.00029999,4]
[328768136,1717776653907,-500.0,0.00029999,4]
[328768137,1717776653916,-500.0,0.00029999,4]
[328768138,1717776653926,-500.0,0.00029999,4]
[328768139,1717776653935,-244.75633949,0.00029999,4]
[328768140,1717776653944,-500.0,0.00029999,4]
[328768141,1717776653954,-500.0,0.00029999,4]
[328768142,1717776653964,-500.0,0.00029999,4]
[328768143,1717776653974,-500.0,0.00029999,4]
[328768144,1717776653984,-500.0,0.00029999,4]
[328768145,1717776653995,-500.0,0.00029999,4]
[328768146,1717776654005,-500.0,0.00029999,4]
[328768147,1717776654015,-500.0,0.00029999,4]
[328768148,1717776654024,-500.0,0.00029999,4]
[328768149,1717776654034,-282.71714644,0.00029999,4]
[328768150,1717776654044,-293.0,0.00029999,2]
[328768151,1717776654054,-158.0,0.00029999,5]
[328768152,1717776654065,-1884.0,0.0003,2]
[328768153,1717776654074,-64307.92571047,0.0003,13]
[328768154,1717776654088,-716.32456,0.0003,13]
[328768155,1717776654111,-226.6238354,0.00022499,2]
[328768156,1717776654121,-250.84971858,0.00029998,2]
[328768157,1717776654132,-1494.82037085,0.0003,13]
[328768158,1717776654143,-3773.74047504,0.0003,13]
[328768159,1717776654155,-726.51037567,0.0003,13]
[328768160,1717776654166,-1919.57705919,0.0003,13]
[328768175,1717777630157,-545.55511165,0.00017244,2]
[328768176,1717777630181,-250.84971858,0.00017245,2]
[328768177,1717777630203,-291.30787118,0.00017245,2]
[328768178,1717777630226,-7002.0,0.00024,5]
[328768179,1717777630249,-258.52,0.00024384,2]
[328768180,1717777630270,-1000.0,0.00025,2]
[328768181,1717777630293,-1250.0,0.00025,2]
[328768182,1717777630316,-155.0,0.00025299,2]
[328768183,1717777630338,-4748.2732,0.000253,2]
[328768184,1717777630360,-150.99,0.000254,2]
[328768185,1717777630383,-499.99,0.000259,2]
[328768186,1717777630407,-331.14,0.0002643,2]
[328768187,1717777630428,-600.87,0.00027625,2]
[328768188,1717777630451,-22471.89,0.00027915,2]
[328768189,1717777630472,-200.0,0.00027967,2]
[328768190,1717777630494,-655.455848,0.00027992,2]
[328768191,1717777630516,-246.193775,0.00027992,2]
[328768192,1717777630538,-183.754793,0.00027992,2]
[328768193,1717777630560,-334.536975,0.00027992,2]
[328768194,1717777630583,-213.791135,0.00027992,2]
[328768195,1717777630605,-1517.08059,0.00027992,2]
[328768196,1717777630627,-164.78,0.00028157,2]
[328768197,1717777630652,-1000.0,0.000282,2]
[328768198,1717777630675,-502.08,0.00028218,2]
[328768199,1717777630696,-250.0,0.00028229,2]
[328768200,1717777630720,-172.42,0.00028297,2]
[328768201,1717777630742,-655.455848,0.00028342,2]
[328768202,1717777630763,-334.536975,0.00028342,2]
[328768203,1717777630785,-1517.08059,0.00028342,2]
[328768204,1717777630807,-250.0,0.00028353,2]
[328768205,1717777630828,-162.089,0.00028353,2]
[328768206,1717777630851,-1235.15,0.00028356,2]
[328768207,1717777630873,-611.02,0.00028362,2]
[328768208,1717777630896,-880.0,0.00028363,2]
[328768209,1717777630916,-200.0,0.00028427,2]
[328768210,1717777630938,-168.23,0.00028449,2]
[328768211,1717777630959,-164.36,0.00028676,2]
[328768212,1717777630983,-655.455848,0.00028692,2]
[328768213,1717777631004,-334.536975,0.00028692,2]
[328768214,1717777631028,-1517.08059,0.00028692,2]
[328768215,1717777631051,-331.14,0.00028694,2]
[328768216,1717777631074,-164.36,0.00028712,2]
[328768217,1717777631097,-164.36,0.00028748,2]
[328768218,1717777631120,-164.36,0.00028784,2]
[328768219,1717777631142,-164.36,0.0002882,2]
[328768220,1717777631164,-1165.53769234,0.00029,2]
[328768221,1717777631187,-655.455848,0.00029042,2]
[328768222,1717777631210,-334.536975,0.00029042,2]
[328768223,1717777631232,-1517.08059,0.00029042,2]
[328768224,1717777631255,-195.84516888,0.00029363,2]
[328768225,1717777631278,-655.455848,0.00029392,2]
[328768226,1717777631300,-334.536975,0.00029392,2]
[328768227,1717777631323,-1517.08059,0.00029392,2]
[328768228,1717777631346,-150.73002061,0.00029433,2]
[328768229,1717777631369,-195.84516888,0.00029467,2]
[328768230,1717777631393,-155.04269626,0.00029479,2]
[328768231,1717777631415,-195.84516888,0.00029495,2]
[328768232,1717777631437,-155.12011439,0.00029543,2]
[328768233,1717777631649,-155.10720857,0.00029551,2]
[328768234,1717777631672,-155.12011439,0.00029586,2]
[328768235,1717777631694,-502.08,0.00029629,2]
[328768236,1717777631716,-194.69498767,0.00029699,15]
[328768237,1717777631737,-1028.0,0.000297,2]
[328768238,1717777631760,-194.69498761,0.00029721,15]
[328768239,1717777631781,-150.73002061,0.00029723,2]
[328768240,1717777631804,-194.69498761,0.00029744,15]
[328768241,1717777631825,-500.0,0.00029758,2]
[328768242,1717777631847,-500.0,0.00029763,2]
[328768243,1717777631869,-194.69498761,0.00029766,15]
[328768244,1717777631891,-161.32297361,0.00029772,2]
[328768245,1717777631914,-194.69498761,0.00029788,15]
[328768246,1717777631940,-224.18,0.00029789,10]
[328768247,1717777631963,-186.81,0.00029789,10]
[328768248,1717777631993,-2656.7452,0.00029799,2]
[328768249,1717777632017,-10633.18151835,0.00029799,2]
[328768264,1717777765301,226.6238354,0.000201,2]
[328768265,1717777775443,298.02,0.00026691,2]
[328768266,1717777781319,83.56242392,0.00022498,2]
[328768293,1717777831977,-155.0,0.00022498,2]
[328768294,1717777831987,-250.84971858,0.00028544,2]
[328768295,1717777831996,-15.70868066,0.00028545,2]
[328768296,1717777832069,-234.29131934,0.00028545,2]
[328768297,1717777832078,-155.0,0.0002864,2]
[328768298,1717777832089,-493.04329588,0.00028641,2]
[328768299,1717777832101,-506.95670412,0.00028641,2]
[328768300,1717777832111,-228.10626525,0.00028641,2]
[328768301,1717777832124,-21.89373475,0.00028641,2]
[328768302,1717777832133,-407.01,0.00028648,2]
[328768303,1717777832142,-1153.97150169,0.0002877,15]
[328768304,1717777832154,-2470.24297497,0.0002877,15]
[328768305,1717777832165,-648.56859254,0.0002877,15]
[328768306,1717777832177,-814.7869308,0.0002877,15]
[328768307,1717777832187,-5030.68694207,0.0002877,15]
[328768308,1717777832202,-56.88305793,0.0002877,15]
[328768309,1717777832211,-934.50262169,0.0002877,15]
[328768310,1717777832222,-1114.381095,0.0002877,15]
[328768311,1717777832233,-801.07337452,0.0002877,15]
[328768312,1717777832245,-2237.61290879,0.0002877,15]
[328768313,1717777832255,-5087.57,0.0002877,15]
[328768314,1717777832265,-298.02,0.00028955,2]
[328768315,1717777832274,-873.01,0.00029041,2]
[328768316,1717777832283,-831.18,0.00029041,2]
[328768317,1717777832293,-873.01,0.00029041,2]
[328768318,1717777832303,-873.01,0.00029041,2]
[328768319,1717777832312,-369.01298711,0.00029041,2]
[328768320,1717777832324,-487.14701289,0.00029041,2]
[328768321,1717777832334,-5087.57,0.00029043,15]
[328768322,1717777832343,-5087.57,0.00029043,15]
[328768323,1717777832354,-5087.57,0.00029317,15]
[328768324,1717777832364,-5087.57,0.00029317,15]
[328768325,1717777832374,-155.10720857,0.00029349,2]
[328768326,1717777832383,-170.9470932,0.00029397,2]
[328768327,1717777832393,-176.26065199,0.00029446,2]
[328768328,1717777832402,-176.26065199,0.00029448,2]
[328768329,1717777832412,-154.83037785,0.00029491,2]
[328768330,1717777832421,-176.26065199,0.00029524,2]
[328768331,1717777832430,-155.12011439,0.00029546,2]
[328768332,1717777832440,-5087.57,0.0002959,15]
[328768333,1717777832453,-5087.57,0.0002959,15]
[328768334,1717777832463,-166.74070702,0.00029595,2]
[328768335,1717777832472,-176.26065199,0.00029632,2]
[328768336,1717777832482,-199.4353472,0.00029699,15]
[328768337,1717777832491,-2500.0,0.00029763,2]
[328768338,1717777832501,-176.26065199,0.00029771,2]
[328768339,1717777832510,-166.74070702,0.00029778,2]
[328768340,1717777832519,-35692.26580009,0.00029799,2]
[328768341,1717777832531,-1432.60164,0.00029799,2]
[328768342,1717777832548,-607.1135588,0.00029799,2]
[328768343,1717777832559,-423.32484874,0.00029799,2]
[328768345,1717777832576,-504.69421276,0.00029799,2]
[328768348,1717777832591,-939.82724979,0.00029799,2]
[328768350,1717777832603,-370.44261325,0.00029799,2]
[328768352,1717777832614,-977.03499773,0.00029799,2]
[328768353,1717777832626,-277.50880542,0.00029799,2]
[328768354,1717777832637,-303.64139668,0.00029799,2]
[328768356,1717777837949,-6539.39005,0.00029799,2]
[328768357,1717777838191,-3637.20517682,0.00029799,2]
[328768358,1717777838212,-59525.84813157,0.00029799,2]
[328768359,1717777838223,-1000.0,0.00029799,2]
[328768360,1717777838233,-192.66109184,0.00029799,2]
[328768361,1717777838243,-199.4353472,0.000298,15]
[328768362,1717777838252,-194.69498761,0.00029811,15]
[328768363,1717777838262,-194.69498761,0.00029833,15]
[328768364,1717777838272,-194.69498761,0.00029855,15]
[328768365,1717777838282,-175.73264639,0.00029863,4]
[328768366,1717777838294,-501.98392537,0.00029863,4]
[328768367,1717777838303,-500.0,0.00029863,4]
[328768368,1717777838313,-500.0,0.00029863,4]
[328768369,1717777838323,-506.1565305,0.00029863,4]
[328768370,1717777838333,-511.09607297,0.00029863,4]
[328768371,1717777838342,-500.0,0.00029863,4]
[328768372,1717777838351,-500.0,0.00029863,4]
[328768373,1717777838361,-500.0,0.00029863,4]
[328768374,1717777838371,-226.27995297,0.00029863,4]
[328768375,1717777838382,-500.0,0.00029863,4]
[328768376,1717777838392,-500.0,0.00029863,4]
[328768377,1717777838402,-500.0,0.00029863,4]
[328768378,1717777838411,-500.0,0.00029863,4]
[328768379,1717777838421,-500.0,0.00029863,4]
[328768380,1717777838431,-500.0,0.00029863,4]
[328768381,1717777838441,-160.70368835,0.00029863,4]
[328768382,1717777838451,-500.0,0.00029863,4]
[328768383,1717777838460,-500.0,0.00029863,4]
[328768384,1717777838471,-500.0,0.00029863,4]
[328768385,1717777838481,-500.0,0.00029863,4]
[328768386,1717777838490,-500.0,0.00029863,4]
[328768387,1717777838500,-500.0,0.00029863,4]
[328768388,1717777838510,-500.0,0.00029863,4]
[328768389,1717777838519,-500.0,0.00029863,4]
[328768390,1717777838530,-500.0,0.00029863,4]
[328768391,1717777838540,-500.0,0.00029863,4]
[328768392,1717777838549,-500.0,0.00029863,4]
[328768393,1717777838559,-500.0,0.00029863,4]
[328768394,1717777838569,-500.0,0.00029863,4]
[328768395,1717777838579,-500.0,0.00029863,4]
[328768396,1717777838588,-500.0,0.00029863,4]
[328768397,1717777838598,-500.0,0.00029863,4]
[328768398,1717777838608,-500.0,0.00029863,4]
[328768399,1717777838617,-500.0,0.00029863,4]
[328768400,1717777838627,-500.0,0.00029863,4]
[328768401,1717777838646,-500.0,0.00029863,4]
[328768404,1717777838657,-500.0,0.00029863,4]
[328768407,1717777838667,-500.0,0.00029863,4]
[328768409,1717777838677,-500.0,0.00029863,4]
[328768411,1717777838687,-521.95457124,0.00029863,4]
[328768413,1717777838698,-500.0,0.00029863,4]
[328768415,1717777838708,-436.53,0.00029863,4]
[328768416,1717777838718,-500.0,0.00029863,4]
[328768417,1717777838728,-500.0,0.00029863,4]
[328768418,1717777838738,-328.06,0.00029863,4]
[328768419,1717777838748,-500.0,0.00029863,4]
[328768420,1717777838758,-500.0,0.00029863,4]
[328768421,1717777838769,-500.0,0.00029863,4]
[328768422,1717777838779,-500.0,0.00029863,4]
[328768423,1717777838789,-509.84,0.00029863,4]
[328768424,1717777838799,-500.0,0.00029863,4]
[328768425,1717777838809,-5087.57,0.00029863,15]
[328768426,1717777838820,-5087.57,0.00029863,15]
[328768427,1717777838830,-156.02019917,0.00029867,2]
[328768428,1717777838840,-355.90493074,0.00029871,2]
[328768429,1717777838850,-355.90493072,0.00029875,2]
[328768430,1717777838860,-194.69498761,0.00029878,15]
[328768431,1717777838870,-355.90493072,0.00029879,2]
[328768432,1717777838879,-355.90493072,0.00029883,2]
[328768433,1717777838889,-355.90493072,0.00029888,2]
[328768434,1717777838899,-152.33,0.00029889,2]
[328768435,1717777838908,-355.90493072,0.00029892,2]
[328768436,1717777838918,-355.90493072,0.00029896,2]
[328768437,1717777838928,-7500.0,0.00029898,2]
[328768438,1717777838938,-29550.20940905,0.00029899,2]
[328768439,1717777838962,-1593.35987949,0.00029899,2]
[328768440,1717777838983,-54658.09961146,0.00029899,2]
[328768441,1717777838994,-1000.0,0.00029899,2]
[328768442,1717777839004,-194.69498761,0.000299,15]
[328768443,1717777839015,-199.4353472,0.000299,15]
[328768444,1717777839024,-355.90493072,0.000299,2]
[328768445,1717777839035,-176.26065199,0.00029915,2]
[328768446,1717777839047,-155.12011439,0.00029919,2]
[328768447,1717777839058,-1384.36996747,0.00029971,2]
[328768448,1717777839068,-176.26065199,0.00029979,2]
[328768449,1717777839080,-165.03121418,0.00029988,2]
[328768450,1717777839091,-35903.50775668,0.00029994,4]
[328768455,1717777840972,-297.205001,0.00029994,4]
[328768456,1717777841065,-14052.71780715,0.00029994,4]
[328768457,1717777841075,-276.22125806,0.00029997,4]
[328768458,1717777841086,-500.0,0.00029997,4]
[328768459,1717777841096,-500.0,0.00029997,4]
[328768460,1717777841105,-500.0,0.00029997,4]
[328768461,1717777841114,-310.2,0.00029997,4]
[328768462,1717777841125,-500.0,0.00029997,4]
[328768463,1717777841134,-340.18,0.00029997,4]
[328768464,1717777841144,-500.0,0.00029997,4]
[328768465,1717777841153,-500.0,0.00029997,4]
[328768466,1717777841163,-774.01,0.00029997,4]
[328768467,1717777841172,-774.01,0.00029997,4]
[328768468,1717777841181,-500.0,0.00029997,4]
[328768469,1717777841191,-500.0,0.00029997,4]
[328768470,1717777841201,-500.0,0.00029997,4]
[328768471,1717777841212,-820.48,0.00029997,4]
[328768472,1717777841221,-820.48,0.00029997,4]
[328768473,1717777841231,-500.0,0.00029997,4]
[328768474,1717777841240,-500.0,0.00029997,4]
[328768475,1717777841250,-500.0,0.00029997,4]
[328768476,1717777841259,-500.0,0.00029997,4]
[328768477,1717777841268,-557.85,0.00029997,4]
[328768478,1717777841278,-557.85,0.00029997,4]
[328768479,1717777841287,-500.0,0.00029997,4]
[328768480,1717777841299,-593.0,0.00029997,4]
[328768481,1717777841309,-593.0,0.00029997,4]
[328768482,1717777841318,-500.0,0.00029997,4]
[328768483,1717777841327,-332.33633131,0.00029997,4]
[328768484,1717777841340,-500.0,0.00029997,4]
[328768485,1717777841349,-500.0,0.00029997,4]
[328768486,1717777841359,-500.0,0.00029997,4]
[328768487,1717777841369,-500.0,0.00029997,4]
[328768488,1717777841379,-500.0,0.00029997,4]
[328768489,1717777841389,-500.0,0.00029997,4]
[328768490,1717777841398,-500.0,0.00029997,4]
[328768491,1717777841408,-500.0,0.00029997,4]
[328768492,1717777841418,-500.0,0.00029997,4]
[328768493,1717777841428,-781.04,0.00029997,4]
[328768494,1717777841438,-781.04,0.00029997,4]
[328768495,1717777841448,-626.99,0.00029997,4]
[328768496,1717777841458,-626.99,0.00029997,4]
[328768497,1717777841467,-500.0,0.00029997,4]
[328768498,1717777841477,-468.98890906,0.00029997,4]
[328768499,1717777841486,-500.0,0.00029997,4]
[328768500,1717777841496,-500.0,0.00029997,4]
[328768501,1717777841511,-500.0,0.00029997,4]
[328768502,1717777841524,-500.0,0.00029997,4]
[328768503,1717777841537,-500.0,0.00029997,4]
[328768504,1717777841553,-500.0,0.00029997,4]
[328768505,1717777841565,-500.0,0.00029997,4]
[328768506,1717777841577,-500.0,0.00029997,4]
[328768507,1717777841590,-500.0,0.00029997,4]
[328768508,1717777841600,-500.0,0.00029997,4]
[328768509,1717777841610,-500.0,0.00029997,4]
[328768510,1717777841621,-500.0,0.00029997,4]
[328768511,1717777841633,-500.0,0.00029997,4]
[328768512,1717777841644,-653.1,0.00029997,4]
[328768513,1717777841655,-500.0,0.00029997,4]
[328768514,1717777841666,-500.0,0.00029997,4]
[328768515,1717777841678,-653.1,0.00029997,4]
[328768516,1717777841690,-500.0,0.00029997,4]
[328768517,1717777841702,-500.0,0.00029997,4]
[328768518,1717777841714,-323.46,0.00029997,4]
[328768519,1717777841725,-500.0,0.00029997,4]
[328768520,1717777841737,-500.0,0.00029997,4]
[328768521,1717777841749,-500.0,0.00029997,4]
[328768522,1717777841763,-500.0,0.00029997,4]
[328768523,1717777841775,-500.0,0.00029997,4]
[328768524,1717777841789,-529.5,0.00029997,4]
[328768525,1717777841802,-529.5,0.00029997,4]
[328768526,1717777841814,-500.0,0.00029997,4]
[328768527,1717777841824,-500.0,0.00029997,4]
[328768528,1717777841838,-500.0,0.00029997,4]
[328768529,1717777841849,-500.0,0.00029997,4]
[328768530,1717777841862,-500.0,0.00029997,4]
[328768531,1717777841876,-2325.89,0.00029997,4]
[328768532,1717777841887,-2325.89,0.00029997,4]
[328768533,1717777841899,-500.0,0.00029997,4]
[328768534,1717777841911,-500.0,0.00029997,4]
[328768535,1717777841923,-500.0,0.00029997,4]
[328768536,1717777841935,-958.04,0.00029997,4]
[328768537,1717777841945,-958.04,0.00029997,4]
[328768538,1717777841957,-500.0,0.00029997,4]
[328768539,1717777841968,-500.0,0.00029997,4]
[328768540,1717777841979,-500.0,0.00029997,4]
[328768541,1717777841989,-500.0,0.00029997,4]
[328768542,1717777841999,-304.3320497,0.00029997,2]
[328768543,1717777842011,-500.0,0.00029997,4]
[328768544,1717777842023,-500.0,0.00029997,4]
[328768545,1717777842035,-500.0,0.00029997,4]
[328768546,1717777842050,-500.0,0.00029997,4]
[328768547,1717777842061,-500.0,0.00029997,4]
[328768548,1717777842073,-500.0,0.00029997,4]
[328768549,1717777842087,-500.0,0.00029997,4]
[328768550,1717777842099,-3225.32,0.00029997,4]
[328768551,1717777842110,-500.0,0.00029997,4]
[328768552,1717777842125,-3225.32,0.00029997,4]
[328768553,1717777842137,-500.0,0.00029997,4]
[328768554,1717777842149,-500.0,0.00029997,4]
[328768555,1717777842161,-224.25225189,0.00029998,2]
[328768556,1717777842174,-559.81487602,0.00029998,2]
[328768557,1717777842186,-2052.95118628,0.00029998,2]
[328768558,1717777842198,-1122.10328528,0.00029998,2]
[328768559,1717777842208,-863.57303464,0.00029998,3]
[328768560,1717777842219,-9709.31553153,0.00029998,3]
[328768561,1717777842229,-2410.81593349,0.00029998,2]
[328768562,1717777842239,-241.25864268,0.00029998,2]
[328768563,1717777842250,-755.6187192,0.00029998,2]
[328768564,1717777842261,-226.74150104,0.00029998,3]
[328768565,1717777842271,-155.0,0.00029998,2]
[328768566,1717777842283,-3063.72776014,0.00029998,2]
[328768567,1717777842296,-217.26605951,0.00029998,2]
[328768568,1717777842308,-277.3658757,0.00029998,2]
[328768569,1717777842320,-186.79971435,0.00029998,7]
[328768570,1717777842332,-222.41097971,0.00029998,2]
[328768571,1717777842343,-500.0,0.00029998,4]
[328768572,1717777842354,-500.0,0.00029998,4]
[328768573,1717777842364,-501.46759596,0.00029998,4]
[328768574,1717777842375,-500.0,0.00029998,4]
[328768575,1717777842386,-500.0,0.00029998,4]
[328768576,1717777842397,-500.0,0.00029998,4]
[328768577,1717777842408,-500.0,0.00029998,4]
[328768578,1717777842420,-500.0,0.00029998,4]
[328768579,1717777842432,-500.0,0.00029998,4]
[328768580,1717777842443,-500.0,0.00029998,4]
[328768581,1717777842453,-500.0,0.00029998,4]
[328768582,1717777842464,-552.38,0.00029998,4]
[328768583,1717777842475,-500.0,0.00029998,4]
[328768585,1717777842485,-500.0,0.00029998,4]
[328768587,1717777842496,-500.0,0.00029998,4]
[328768588,1717777842507,-500.0,0.00029998,4]
[328768589,1717777842518,-500.0,0.00029998,4]
[328768590,1717777842528,-500.0,0.00029998,4]
[328768591,1717777842539,-573.67694156,0.00029998,4]
[328768592,1717777842551,-500.0,0.00029998,4]
[328768593,1717777842562,-500.0,0.00029998,4]
[328768594,1717777842573,-500.0,0.00029998,4]
[328768595,1717777842583,-500.0,0.00029998,4]
[328768596,1717777842597,-500.0,0.00029998,4]
[328768597,1717777842609,-500.0,0.00029998,4]
[328768598,1717777842619,-507.0,0.00029998,4]
[328768599,1717777842630,-500.0,0.00029998,4]
[328768600,1717777842641,-500.0,0.00029998,4]
[328768601,1717777842652,-500.0,0.00029998,4]
[328768602,1717777842663,-500.0,0.00029998,4]
[328768603,1717777842674,-500.0,0.00029998,4]
[328768604,1717777842684,-500.0,0.00029998,4]
[328768605,1717777842696,-500.0,0.00029998,4]
[328768606,1717777842707,-500.0,0.00029998,4]
[328768607,1717777842725,-500.0,0.00029998,4]
[328768608,1717777842741,-500.0,0.00029998,4]
[328768609,1717777842754,-500.0,0.00029998,4]
[328768610,1717777842766,-500.0,0.00029998,4]
[328768611,1717777842780,-500.0,0.00029998,4]
[328768612,1717777842794,-384.80027406,0.00029998,4]
[328768613,1717777842806,-500.0,0.00029998,4]
[328768614,1717777842818,-500.0,0.00029998,4]
[328768615,1717777842829,-500.0,0.00029998,4]
[328768616,1717777842842,-500.0,0.00029998,4]
[328768617,1717777842854,-445.43029862,0.00029998,4]
[328768618,1717777842865,-500.0,0.00029998,4]
[328768619,1717777842877,-500.0,0.00029998,4]
[328768621,1717777842888,-500.0,0.00029998,4]
[328768622,1717777842900,-500.0,0.00029998,4]
[328768623,1717777842911,-500.0,0.00029998,4]
[328768624,1717777842922,-500.0,0.00029998,4]
[328768625,1717777842933,-500.0,0.00029998,4]
[328768626,1717777842944,-500.0,0.00029998,4]
[328768627,1717777842955,-500.0,0.00029998,4]
[328768628,1717777842966,-500.0,0.00029998,4]
[328768629,1717777842977,-500.0,0.00029998,4]
[328768630,1717777842988,-500.0,0.00029998,4]
[328768631,1717777842999,-500.0,0.00029998,4]
[328768632,1717777843010,-500.0,0.00029998,4]
[328768633,1717777843022,-500.0,0.00029998,4]